bitfinex/quotes_ETHUSD_20220101
["timestamp","ask_amount","ask_price","bid_price","bid_amount"]
[1641011611112,0.00170527,3713.7,3713.3,0.67324]
[1641011611315,0.00113685,3713.6,3713.3,0.67324]
[1641011611517,0.00113685,3713.6,3713.3,3.79776532]
[1641011612613,0.00113685,3713.6,3713.3,4.09776532]
[1641011612846,0.00113685,3713.6,3713.4,0.67322]
[1641011613053,0.00113685,3713.6,3713.4,2.04480701]
[1641011613454,0.00113685,3713.6,3713.4,1.67322]
[1641011615055,0.00113685,3713.6,3713.4,3.04480701]
[1641011617488,0.00113685,3713.6,3713.4,1.67322]
[1641011618493,0.00113685,3713.6,3713.4,3.04480701]
[1641011621146,0.00113685,3713.6,3713.5,1.37158701]
[1641011621545,0.00113685,3713.6,3713.5,2.37158701]
[1641011621949,0.00113685,3713.6,3713.5,1.37158701]
[1641011625195,0.00113685,3713.6,3713.5,3.48545435]
[1641011625595,0.00113685,3713.6,3713.5,4.48545435]
[1641011626198,0.00113685,3713.6,3713.5,3.11386734]
[1641011626397,0.00113685,3713.6,3713.5,2.75459257]
[1641011626597,0.00113685,3713.6,3713.5,1.75459257]
[1641011626798,0.00113685,3713.6,3713.5,2.75459257]
[1641011627000,0.00113685,3713.6,3713.5,1.75459257]
[1641011627600,0.00113685,3713.6,3713.2,4.68617785]
[1641011627601,0.00113685,3713.6,3713.3,1.75459257]
[1641011630148,0.00113685,3713.6,3713.4,1.75459257]
[1641011630648,0.00113685,3713.6,3713.5,1.75459257]
[1641011631252,0.00113685,3713.6,3713.5,1.37394901]
[1641011633099,0.00113685,3713.6,3713.4,1.37394901]
[1641011633906,0.00113685,3713.6,3713.5,1.37394901]
[1641011634706,0.00113685,3713.6,3713.4,2.04722901]
[1641011635951,0.00113685,3713.6,3713.5,1.37394901]
[1641011636954,0.00405436,3713.8,3713.5,1.37394901]
[1641011637154,0.00405436,3713.8,3713.6,0.67321]
[1641011637553,0.00405436,3713.8,3713.6,2.04715901]
[1641011639808,0.00405436,3713.8,3713.6,1.37394901]
[1641011640807,0.00405436,3713.8,3713.4,1.37394901]
[1641011641606,0.00405436,3713.8,3713.3,1.43154901]
[1641011642206,0.00405436,3713.8,3713.5,0.67322]
[1641011642408,0.00405436,3713.8,3713.5,1.39712]
[1641011642707,0.00405436,3713.8,3713.5,1.69712]
[1641011642961,0.00405436,3713.8,3713.5,5.46068547]
[1641011643157,0.00405436,3713.8,3713.6,1.0]
[1641011643759,0.00405436,3713.8,3713.5,1.99712]
[1641011643958,0.00405436,3713.8,3713.6,1.75459257]
[1641011644156,0.00405436,3713.8,3713.6,2.75459257]
[1641011644759,0.00405436,3713.8,3713.6,1.67312]
[1641011647804,0.00405436,3713.8,3713.6,3.42771257]
[1641011648908,0.00405436,3713.8,3713.6,1.67312]
[1641011650009,0.00405436,3713.8,3713.6,3.77817178]
[1641011650210,0.00405436,3713.8,3713.7,2.09426459]
[1641011650655,0.00519121,3713.8,3713.7,3.39426459]
[1641011653159,0.00519121,3713.8,3713.7,4.76570791]
[1641011653362,0.00519121,3713.8,3713.7,5.48380791]
[1641011653560,0.00519121,3713.8,3713.7,5.43380791]
[1641011653760,0.00519121,3713.8,3713.7,4.06236459]
[1641011655698,0.00519121,3713.8,3713.7,3.34426459]
[1641011656900,0.00519121,3713.8,3713.7,5.09885716]
[1641011659243,0.00519121,3713.8,3713.7,1.75459257]
[1641011661594,0.00519121,3713.8,3713.7,2.05459257]
[1641011661795,0.00519121,3713.8,3713.7,3.05459257]
[1641011662396,0.00519121,3713.8,3713.7,1.75459257]
[1641011665640,0.00519121,3713.8,3713.7,2.05459257]
[1641011666040,0.00519121,3713.8,3713.7,3.05459257]
[1641011668046,0.00519121,3713.8,3713.7,1.75459257]
[1641011672514,0.00519121,3713.8,3713.7,2.05459257]
[1641011672957,0.00519121,3713.8,3713.7,4.1246566]
[1641011673156,0.00519121,3713.8,3713.7,5.1246566]
[1641011674162,0.00519121,3713.8,3713.7,3.8246566]
[1641011674357,0.00519121,3713.8,3713.7,1.75459257]
[1641011675561,0.00519121,3713.8,3713.6,1.67312]
[1641011676158,0.00519121,3713.8,3713.7,1.75459257]
[1641011678302,0.00519121,3713.8,3713.6,1.67312]
[1641011680652,0.00405436,3713.8,3713.6,1.67312]
[1641011681053,0.00405436,3713.8,3713.7,1.83440068]
[1641011681655,0.00405436,3713.8,3713.6,3.50752068]
[1641011681854,0.00405436,3713.8,3713.6,2.50752068]
[1641011684804,0.00405436,3713.8,3713.6,2.80752068]
[1641011685003,0.00405436,3713.8,3713.7,1.0]
[1641011685204,0.00405436,3713.8,3713.7,3.12019964]
[1641011685405,0.00405436,3713.8,3713.7,3.93999964]
[1641011687949,0.12460217,3714.9,3713.8,3.0]
[1641011688152,0.12460217,3714.9,3713.9,1.34623]
[1641011688354,0.00284212,3714.1,3713.9,1.34623]
[1641011688552,0.00284212,3714.1,3713.5,2.72096569]
[1641011688752,0.00227369,3714.0,3713.5,2.72096569]
[1641011689051,0.00170527,3713.9,3713.8,1.83280128]
[1641011689854,0.00170527,3713.9,3713.6,0.67324]
[1641011690351,1.13164016,3714.4,3713.6,0.67324]
[1641011690352,0.00113685,3713.8,3713.6,0.67324]
[1641011690752,0.00397896,3714.3,3713.6,0.67324]
[1641011691166,0.00341054,3714.2,3713.4,3.0927]
[1641011691454,0.00341054,3714.2,3713.4,1.83280128]
[1641011691697,0.00397896,3714.3,3713.4,1.83280128]
[1641011692098,0.00341054,3714.2,3713.4,1.83280128]
[1641011692299,0.00341054,3714.2,3713.2,1.29195216]
[1641011692300,0.67334,3714.0,3713.2,3.12475344]
[1641011692700,0.67334,3714.0,3713.3,0.00170527]
[1641011692701,0.00170527,3713.9,3713.3,0.00170527]
[1641011693104,0.00113685,3713.8,3713.3,0.00170527]
[1641011693503,0.67335,3713.8,3713.3,0.00170527]
[1641011693703,1.68564538,3713.8,3713.3,0.00170527]
[1641011694705,0.67335,3713.8,3713.3,0.00170527]
[1641011699297,0.67335,3713.8,3713.2,0.00227369]
[1641011699702,0.15302584,3713.7,3713.2,0.00227369]
[1641011699902,0.15302584,3713.7,3713.0,1.08172543]
[1641011700408,0.00227369,3713.6,3713.1,0.67329]
[1641011700802,0.00170527,3713.5,3713.1,0.67329]
[1641011701201,0.00113684,3713.4,3713.1,0.67329]
[1641011701601,0.00227369,3713.6,3713.1,0.67329]
[1641011702004,0.00170527,3713.5,3713.1,0.67329]
[1641011702402,0.00113684,3713.4,3713.1,0.67329]
[1641011702844,0.22461537,3714.1,3713.7,1.26730909]
[1641011703255,0.00454738,3714.0,3713.7,1.26730909]
[1641011703451,0.00454738,3714.0,3713.2,0.67326]
[1641011703651,0.00397896,3713.9,3712.9,1.34651]
[1641011703854,0.00397896,3713.9,3712.9,0.3]
[1641011704053,0.00341054,3713.8,3712.8,0.3022737]
[1641011704254,0.00341054,3713.8,3713.4,1.37393879]
[1641011704452,0.00284211,3713.7,3713.4,1.37393879]
[1641011704853,0.00227369,3713.6,3713.5,1.37393879]
[1641011705754,0.00227369,3713.6,3713.4,1.37393879]
[1641011706253,0.28741556,3714.2,3713.5,1.07279231]
[1641011706454,0.22466794,3714.1,3713.5,1.07279231]
[1641011706699,0.22978375,3714.1,3713.5,1.07279231]
[1641011707902,0.22466794,3714.0,3713.5,1.07279231]
[1641011708301,0.00397896,3713.9,3713.5,1.07279231]
[1641011708600,0.00341054,3713.8,3713.5,1.07279231]
[1641011709001,0.00284211,3713.7,3713.5,1.07279231]
[1641011709403,0.00227369,3713.6,3713.5,1.07279231]
[1641011710455,0.00227369,3713.6,3713.3,1.37393879]
[1641011710858,1.40991976,3714.1,3713.1,1.37393879]
[1641011710859,0.67513527,3713.5,3713.1,1.37393879]
[1641011711258,0.00113684,3713.4,3713.1,1.37393879]
[1641011712260,0.67348,3713.3,3712.9,1.31165794]
[1641011712463,0.97348,3713.3,3712.9,1.31165794]
[1641011712760,0.3,3713.3,3712.9,1.31165794]
[1641011712969,0.22426,3713.2,3712.9,1.31165794]
[1641011713866,0.00113684,3713.4,3712.9,1.31165794]
[1641011726651,0.22539684,3713.4,3712.9,2.68559673]
[1641011728255,0.00113684,3713.4,3712.9,2.68559673]
[1641011728961,0.00113684,3713.4,3713.0,1.37393879]
[1641011729399,0.00113684,3713.4,3712.9,2.68559673]
[1641011730500,0.00113684,3713.4,3712.9,1.31165794]
[1641011734560,0.67458684,3713.4,3712.9,1.31165794]
[1641011734961,0.97458684,3713.4,3712.9,1.31165794]
[1641011735161,0.30113684,3713.4,3712.9,1.31165794]
[1641011736162,0.00113684,3713.4,3712.9,1.31165794]
[1641011736604,0.22426,3713.3,3712.9,1.31165794]
[1641011736808,0.67352,3713.2,3712.9,0.00170527]
[1641011737008,0.97352,3713.2,3712.9,0.00170527]
[1641011737204,0.3,3713.2,3712.5,0.00397897]
[1641011737604,1.94703,3713.3,3712.5,0.00397897]
[1641011737806,1.94703,3713.3,3712.6,1.27067627]
[1641011738008,0.22426,3713.1,3712.6,1.27067627]
[1641011738209,0.67353,3712.9,3712.7,0.00284212]
[1641011740847,0.22791082,3712.8,3712.7,0.00284212]
[1641011741653,1.09151824,3711.9,3711.7,1.8299391]
[1641011741853,6.77279739,3711.8,3711.5,2.62332741]
[1641011742060,2.31056864,3711.7,3711.6,2.52332741]
[1641011742253,2.92279739,3711.8,3711.6,2.52332741]
[1641011742452,2.6,3711.6,3710.6,4.00478572]
[1641011742655,1.1064,3711.7,3711.1,1.27665496]
[1641011742656,3.31056864,3711.5,3711.1,1.27665496]
[1641011742853,0.3,3711.6,3711.1,1.27665496]
[1641011743052,0.3,3711.6,3711.2,0.00852635]
[1641011743053,0.67384,3711.5,3711.2,0.00852635]
[1641011743256,0.1008,3711.9,3711.2,0.00852635]
[1641011743454,0.22791082,3711.7,3711.2,0.00852635]
[1641011744399,2.43517081,3712.4,3711.2,0.00852635]
[1641011744400,1.38178144,3712.2,3711.2,0.00852635]
[1641011744601,0.22791082,3712.3,3711.2,0.00852635]
[1641011744602,2.5328382,3712.3,3711.2,0.00852635]
[1641011744799,2.10208829,3712.2,3711.2,0.00852635]
[1641011745000,0.4064,3712.2,3711.2,0.00852635]
[1641011745201,0.22791082,3712.1,3711.2,0.00852635]
[1641011745600,0.22791082,3712.1,3711.7,1.20122124]
[1641011745800,0.1048,3712.0,3711.7,1.20122124]
[1641011746000,0.1056,3712.0,3711.8,0.00511581]
[1641011746201,3.8532,3711.9,3710.5,0.0626]
[1641011746402,2.11876336,3711.8,3710.6,0.00682108]
[1641011746602,0.22791082,3711.9,3710.6,0.00682108]
[1641011747002,0.67489684,3712.0,3710.6,0.00682108]
[1641011747003,0.22791082,3711.7,3710.6,0.00682108]
[1641011747207,0.22791082,3711.7,3711.6,1.11956773]
[1641011747604,0.22791082,3711.7,3711.6,1.12070458]
[1641011747889,0.67373,3711.8,3711.6,0.00113685]
[1641011747890,0.90164082,3711.8,3711.6,0.00113685]
[1641011748688,0.67373,3711.8,3711.6,0.00113685]
[1641011749090,0.67373,3711.8,3711.7,0.00086535]
[1641011750291,0.67482684,3712.0,3711.7,0.00086535]
[1641011750689,0.00113684,3712.0,3711.7,0.00086535]
[1641011751490,0.67482684,3712.0,3711.7,0.00086535]
[1641011751699,0.67482684,3712.0,3711.5,1.16271696]
[1641011751899,0.00170527,3711.9,3711.5,1.16271696]
[1641011752304,0.00113685,3711.8,3711.5,1.16271696]
[1641011752704,0.00284212,3712.1,3711.5,1.16271696]
[1641011753111,0.00227369,3712.0,3711.5,1.16271696]
[1641011753509,0.00170527,3711.9,3711.5,1.16271696]
[1641011753707,0.67372,3711.8,3711.5,1.16271696]
[1641011753909,0.67485685,3711.8,3711.5,1.16271696]
[1641011754110,0.97485685,3711.8,3711.5,1.16271696]
[1641011754511,1.27485685,3711.8,3711.5,1.16271696]
[1641011758757,1.27485685,3711.8,3710.9,0.06225614]
[1641011758956,0.67376,3711.6,3710.9,0.06225614]
[1641011759206,0.97376,3711.6,3711.0,0.00341054]
[1641011759606,0.97376,3711.6,3710.8,0.00454739]
[1641011759806,0.97376,3711.6,3711.4,1.23859425]
[1641011760212,0.67376,3711.6,3711.4,1.23859425]
[1641011760407,0.3,3711.6,3711.4,1.23859425]
[1641011760706,0.97485685,3711.8,3711.4,1.23859425]
[1641011760907,0.67485685,3711.8,3711.4,1.23859425]
[1641011761106,0.67485685,3711.8,3711.4,2.02069425]
[1641011761107,0.00113685,3711.8,3711.4,2.02069425]
[1641011761314,0.00113685,3711.8,3711.5,2.19378813]
[1641011761706,0.00113685,3711.8,3711.5,3.19378813]
[1641011762308,0.00113685,3711.8,3711.5,3.49378813]
[1641011762507,0.00113685,3711.8,3711.6,5.3884]
[1641011762709,1.1460741,3712.6,3712.3,30.83261827]
[1641011762963,1.1460741,3712.6,3712.4,12.08294485]
[1641011763156,1.1460741,3712.6,3712.5,4.24901093]
[1641011763358,0.216153,3712.7,3712.6,3.75212887]
[1641011763557,0.216153,3712.7,3712.6,9.27291224]
[1641011764358,0.216153,3712.7,3712.6,6.98922887]
[1641011764558,0.108077,3712.7,3712.6,6.98922887]
[1641011764758,0.67342,3713.5,3713.4,1.39571651]
[1641011765562,1.27612828,3713.5,3713.4,1.39571651]
[1641011766160,0.01080004,3713.7,3713.4,1.39571651]
[1641011766359,0.108076,3713.6,3713.4,1.39571651]
[1641011766602,0.11830762,3713.6,3713.4,1.39571651]
[1641011766804,0.0096632,3713.5,3713.4,1.39571651]
[1641011767803,1.28579148,3713.5,3713.4,1.39571651]
[1641011768709,1.28579148,3713.5,3713.0,0.01274391]
[1641011769110,0.00909477,3713.4,3713.0,0.01274391]
[1641011769310,0.00909477,3713.4,3712.6,5.98922887]
[1641011769509,0.00852635,3713.3,3712.6,5.98922887]
[1641011769910,0.00795793,3713.2,3713.1,1.20456473]
[1641011770369,0.0096632,3713.2,3713.1,1.20456473]
[1641011774808,1.24594625,3713.2,3713.1,1.20456473]
[1641011777862,1.24594625,3713.2,3712.6,5.98922887]
[1641011778466,0.0073895,3713.1,3712.6,5.98922887]
[1641011778865,0.00682108,3713.0,3712.6,5.98922887]
[1641011779164,1.23628305,3713.1,3712.9,1.24973482]
[1641011779565,0.00682108,3713.0,3712.9,1.24973482]
[1641011782710,0.00682108,3713.0,3712.6,5.98922887]
[1641011783212,0.00625266,3712.9,3712.6,5.98922887]
[1641011783714,0.00568423,3712.8,3712.6,5.98922887]
[1641011784116,0.00511581,3712.7,3712.6,5.98922887]
[1641011784818,5.61507729,3712.6,3711.6,3.72484772]
[1641011785017,5.61507729,3712.6,3711.6,1.37797772]
[1641011785018,2.96212638,3711.7,3711.6,1.37797772]
[1641011785219,2.64233484,3712.5,3712.0,2.45380436]
[1641011785220,3.6463138,3712.5,3712.0,2.45380436]
[1641011785467,0.6737555,3712.3,3712.0,2.45380436]
[1641011785669,1.6737555,3712.3,3712.0,2.45380436]
[1641011785867,1.6737555,3712.3,3711.7,1.09758819]
[1641011785868,0.41427369,3712.2,3711.7,1.09758819]
[1641011786068,0.67375,3712.0,3711.7,1.09758819]
[1641011787274,0.67375,3712.0,3711.9,1.25]
[1641011787675,0.67488684,3712.0,3711.9,1.25]
[1641011788074,0.00113684,3712.0,3711.9,1.25]
[1641011790913,0.62478684,3712.2,3711.9,1.25]
[1641011792213,0.62478684,3712.2,3712.1,1.25]
[1641011792715,0.62478684,3712.2,3710.9,1.37797772]
[1641011792716,4.5,3711.6,3710.9,1.37797772]
[1641011792962,1.09758819,3711.7,3710.9,1.37797772]
[1641011792963,0.67399,3711.3,3710.9,1.37797772]
[1641011793164,1.69758819,3711.7,3711.0,0.00454738]
[1641011793362,0.108,3711.6,3711.5,1.25]
[1641011793560,1.69758819,3711.7,3711.5,2.34512341]
[1641011793762,1.69758819,3711.7,3711.5,2.34682867]
[1641011793964,1.69758819,3711.7,3711.6,0.00113684]
[1641011794164,2.37137819,3711.7,3711.6,0.00113684]
[1641011794360,2.07137819,3711.7,3711.6,1.25113684]
[1641011794561,2.37137819,3711.7,3711.6,1.25113684]
[1641011795563,2.4948931,3711.7,3711.6,1.25113684]
[1641011796163,2.4948931,3711.7,3711.6,2.04973684]
[1641011797211,1.09758819,3711.7,3711.6,2.04973684]
[1641011798615,1.09758819,3711.7,3711.6,1.99973684]
[1641011799219,1.09758819,3711.7,3711.6,1.20113684]
[1641011804619,2.49700825,3711.7,3711.6,1.20113684]
[1641011805017,1.09758819,3711.7,3711.6,1.20113684]
[1641011805620,2.49700825,3711.7,3711.6,1.20113684]
[1641011807975,1.09758819,3711.7,3711.6,1.20113684]
[1641011811180,2.49625187,3711.7,3711.6,1.20113684]
[1641011813912,1.09758819,3711.7,3711.6,1.20113684]
[1641011819622,2.50139107,3711.7,3711.6,1.20113684]
[1641011820226,1.09758819,3711.7,3711.6,1.20113684]
[1641011820825,2.50139107,3711.7,3711.6,1.20113684]
[1641011821225,1.09758819,3711.7,3711.6,1.20113684]
[1641011821824,2.50139107,3711.7,3711.6,1.20113684]
[1641011829817,2.50139107,3711.7,3711.6,1.91133684]
[1641011830122,1.32128482,3712.0,3711.7,2.65216266]
[1641011830383,1.31314089,3712.1,3712.0,4.96912216]
[1641011830588,1.28494089,3712.1,3712.0,9.60702216]
[1641011830780,1.28494089,3712.1,3712.0,9.19021928]
[1641011830982,0.13794089,3712.1,3712.0,9.19021928]
[1641011831180,0.0748,3712.1,3712.0,9.19021928]
[1641011831380,0.0748,3712.1,3712.0,10.44021928]
[1641011831779,0.0748,3712.1,3712.0,8.84021928]
[1641011832280,0.0748,3712.1,3712.0,11.08343293]
[1641011832479,0.0748,3712.1,3712.0,8.84021928]
[1641011832681,0.0748,3712.1,3712.0,6.66972902]
[1641011833886,0.0748,3712.1,3712.0,4.49021928]
[1641011842010,0.0748,3712.1,3712.0,5.41691928]
[1641011847161,0.0748,3712.1,3712.0,6.41691928]
[1641011847361,0.0748,3712.1,3712.0,10.64319668]
[1641011850818,0.0748,3712.1,3712.0,8.36367928]
[1641011851021,0.0748,3712.1,3712.0,5.41691928]
[1641011851225,0.0748,3712.1,3712.0,4.49021928]
[1641011853064,0.0748,3712.1,3712.0,3.35702216]
[1641011869582,0.0748,3712.1,3712.0,4.35702216]
[1641011869783,0.0748,3712.1,3712.0,3.35702216]
[1641011871613,1.35535599,3712.1,3712.0,3.35702216]
[1641011873824,1.35535599,3712.1,3712.0,4.03048216]
[1641011874123,1.35535599,3712.1,3712.0,3.35702216]
[1641011877890,0.0748,3712.1,3712.0,3.35702216]
[1641011880126,1.35381316,3712.1,3712.0,3.35702216]
[1641011880521,0.0748,3712.1,3712.0,3.35702216]
[1641011881120,1.35381316,3712.1,3712.0,3.35702216]
[1641011883476,1.35381316,3712.1,3712.0,4.60769765]
[1641011884277,1.35381316,3712.1,3712.0,3.35702216]
[1641011885280,2.74020901,3712.1,3712.0,3.35702216]
[1641011885479,3.34020901,3712.1,3712.0,3.35702216]
[1641011886823,1.95381316,3712.1,3712.0,3.35702216]
[1641011889228,3.27356563,3712.1,3712.0,3.35702216]
[1641011889628,1.95381316,3712.1,3712.0,3.35702216]
[1641011896224,1.65381316,3712.1,3712.0,3.35702216]
[1641011896421,1.95381316,3712.1,3712.0,3.35702216]
[1641011896621,1.65381316,3712.1,3712.0,3.35702216]
[1641011896822,1.35381316,3712.1,3712.0,3.35702216]
[1641011900779,1.35381316,3712.1,3712.0,4.76317091]
[1641011905032,1.35381316,3712.1,3712.0,4.71317091]
[1641011911029,1.35381316,3712.1,3712.0,3.30702216]
[1641011915884,3.31549261,3712.4,3712.0,3.30702216]
[1641011915885,0.1064,3713.4,3712.7,5.9556003]
[1641011916085,2.83809629,3713.8,3712.7,5.9556003]
[1641011916086,2.83809629,3713.8,3712.9,0.0128755]
[1641011916287,2.83809629,3713.8,3712.9,2.35895044]
[1641011916482,2.83809629,3713.8,3713.0,8.7174]
[1641011916728,0.108077,3713.2,3713.0,9.39066]
[1641011916929,0.108077,3713.2,3713.1,1.34712936]
[1641011917129,0.108077,3713.2,3713.1,10.06432936]
[1641011917326,0.108077,3713.2,3713.1,11.31432936]
[1641011918330,1.43703121,3713.2,3713.1,11.31432936]
[1641011918937,0.108077,3713.2,3713.1,11.31432936]
[1641011923179,0.108077,3713.2,3713.1,9.9672]
[1641011928184,4.86863701,3713.6,3713.1,9.9672]
[1641011928185,0.6734,3713.5,3713.1,9.9672]
[1641011928584,0.01080005,3713.5,3713.1,9.9672]
[1641011930389,0.01080005,3713.5,3713.4,1.25]
[1641011930585,0.01080005,3713.5,3713.4,9.9668]
[1641011930786,0.68420005,3713.5,3713.4,9.9668]
[1641011930988,0.79227605,3713.5,3713.4,9.9668]
[1641011937389,0.11887605,3713.5,3713.4,9.9668]
[1641011941234,0.01080005,3713.5,3713.4,9.9668]
[1641011942239,0.11887605,3713.5,3713.4,9.9668]
[1641011948026,0.108077,3713.6,3713.5,4.5]
[1641011948325,4.22062584,3715.4,3714.0,0.67307]
[1641011948523,4.22062584,3715.4,3714.1,8.7158]
[1641011948524,3.54755584,3715.4,3714.1,8.7158]
[1641011948727,6.18,3715.1,3714.1,8.7158]
[1641011948924,6.18,3715.1,3714.8,1.21687931]
[1641011949127,6.18,3715.1,3714.9,8.7146]
[1641011949325,6.18,3715.1,3715.0,1.25]
[1641011949525,6.18,3715.1,3715.0,9.9645]
[1641011949725,6.18909477,3715.1,3715.0,9.9645]
[1641011951294,0.00909477,3715.1,3715.0,9.9645]
[1641011952495,0.00909477,3715.1,3715.0,8.7145]
[1641011952496,0.32158009,3715.1,3715.0,8.7145]
[1641011952692,0.02158009,3715.1,3715.0,8.7145]
[1641011952898,0.00909477,3715.1,3715.0,8.7145]
[1641011953297,0.00909477,3715.1,3715.0,9.9645]
[1641011953697,3.10909477,3715.1,3715.0,6.51160772]
[1641011953898,3.40909477,3715.1,3715.0,6.51160772]
[1641011954137,4.5,3715.0,3714.6,0.06254506]
[1641011954338,4.51271704,3714.7,3714.6,0.06254506]
[1641011954537,9.15962091,3714.7,3714.6,0.06254506]
[1641011954737,4.66644199,3714.7,3714.6,0.06254506]
[1641011955249,4.66644199,3714.7,3713.6,1.18128194]
[1641011955443,0.67332,3714.1,3713.6,1.18128194]
[1641011955644,0.67332,3714.1,3712.9,0.0596]
[1641011955844,0.00284211,3714.0,3712.9,0.0596]
[1641011956044,0.00284211,3714.0,3713.3,0.00113685]
[1641011956245,0.67332,3714.1,3713.3,0.00113685]
[1641011956246,0.00227369,3713.9,3713.3,0.00113685]
[1641011956645,0.00170527,3713.8,3713.3,1.2709118]
[1641011957044,0.00113684,3713.7,3713.3,1.2709118]
[1641011957444,0.00170527,3713.8,3713.3,1.2709118]
[1641011957871,0.00113684,3713.7,3713.3,1.2709118]
[1641011958075,0.00113684,3713.7,3713.4,5.3858]
[1641011958273,0.67333,3713.9,3713.6,1.25]
[1641011958274,0.00170527,3713.8,3713.6,1.25]
[1641011958475,0.00170527,3713.8,3713.7,5.3855]
[1641011958674,0.67333,3713.9,3713.7,5.3855]
[1641011959274,0.67333,3713.9,3713.8,1.25]
[1641011959574,0.67560369,3713.9,3713.8,6.6353]
[1641011960875,0.00227369,3713.9,3713.8,6.6353]
[1641011964536,0.00227369,3713.9,3713.8,7.3913]
[1641011964935,0.11034969,3713.9,3713.8,7.3913]
[1641011966981,0.11034969,3713.9,3713.8,6.6353]
[1641011974975,0.00227369,3713.9,3713.8,6.6353]
[1641011975974,0.11035069,3713.9,3713.8,6.6353]
[1641011977825,0.11035069,3713.9,3713.8,7.30843]
[1641011983272,0.11035069,3713.9,3713.8,7.96983]
[1641011985929,0.00227369,3713.9,3713.8,7.96983]
[1641011988184,0.11034969,3713.9,3713.8,7.96983]
[1641011989586,0.108076,3713.9,3713.8,7.96983]
[1641011997680,0.108076,3713.9,3713.8,7.30843]
[1641011998083,0.108077,3714.0,3713.8,7.30843]
[1641011999932,0.216153,3714.0,3713.8,7.30843]
[1641012000334,0.216153,3714.0,3713.9,1.25]
[1641012000634,0.21899511,3714.0,3713.9,6.6352]
[1641012001538,0.11091811,3714.0,3713.9,6.6352]
[1641012003391,2.3009024,3714.0,3713.9,6.6352]
[1641012009240,2.6009024,3714.0,3713.9,6.6352]
[1641012009441,3.2743554,3714.0,3713.9,6.6352]
[1641012009639,3.3839554,3714.0,3713.9,6.6352]
[1641012009939,3.3783554,3714.0,3713.9,6.6352]
[1641012010145,3.3791554,3714.0,3713.9,6.6352]
[1641012010389,3.3775554,3714.0,3713.9,6.6352]
[1641012010592,3.3831554,3714.0,3713.9,6.6352]
[1641012010790,3.3815554,3714.0,3713.9,6.6352]
[1641012011090,4.6823554,3714.0,3713.9,6.6352]
[1641012011290,4.6775554,3714.0,3713.9,6.6352]
[1641012011690,4.6783554,3714.0,3713.9,6.6352]
[1641012011891,4.6767554,3714.0,3713.9,6.6352]
[1641012012091,4.6775554,3714.0,3713.9,6.6352]
[1641012012291,4.6759554,3714.0,3713.9,6.6352]
[1641012012492,4.6767554,3714.0,3713.9,6.6352]
[1641012012695,4.6783554,3714.0,3713.9,6.6352]
[1641012013097,4.6799554,3714.0,3713.9,6.6352]
[1641012013299,4.6775554,3714.0,3713.9,6.6352]
[1641012013500,4.6767554,3714.0,3713.9,6.6352]
[1641012013700,2.48517111,3714.0,3713.9,6.6352]
[1641012013900,2.38437111,3714.0,3713.9,6.6352]
[1641012014643,1.71091811,3714.0,3713.9,6.6352]
[1641012015849,4.09286539,3714.0,3713.9,6.6352]
[1641012020892,3.09286539,3714.0,3713.9,6.6352]
[1641012021092,0.11091811,3714.0,3713.9,6.6352]
[1641012030628,0.108076,3714.0,3713.9,6.6352]
[1641012056487,4.40361754,3715.0,3714.0,4.658076]
[1641012056699,3.69282,3715.8,3714.0,4.658076]
[1641012056700,1.0,3715.8,3715.6,4.16377849]
[1641012056892,1.67498669,3716.2,3715.7,7.80008905]
[1641012057092,1.67498669,3716.2,3715.7,5.39551811]
[1641012057290,7.59101185,3716.2,3715.8,4.55]
[1641012057488,7.59101185,3716.2,3715.9,5.3823]
[1641012057691,6.288077,3716.2,3716.0,1.75200807]
[1641012057892,6.288077,3716.2,3716.1,5.382]
[1641012058294,2.591577,3716.2,3716.1,6.632]
[1641012058995,1.21490851,3716.2,3716.1,6.632]
[1641012059238,0.108077,3716.2,3716.1,8.87293466]
[1641012059637,0.108077,3716.2,3716.1,6.632]
[1641012061539,2.78220298,3716.2,3716.1,6.632]
[1641012062036,2.48220298,3716.2,3716.1,4.29537507]
[1641012062238,3.98220298,3716.2,3716.1,4.29537507]
[1641012062638,2.208077,3716.2,3716.1,4.29537507]
[1641012062879,3.79772511,3716.2,3716.1,4.29537507]
[1641012066741,1.608077,3716.2,3716.1,4.29537507]
[1641012074740,1.5,3716.2,3716.1,4.29537507]
[1641012077542,1.608076,3716.2,3716.1,4.29537507]
[1641012087585,1.5,3716.2,3716.1,4.29537507]
[1641012089435,1.608076,3716.2,3716.1,4.29537507]
[1641012104650,1.608076,3716.2,3716.1,4.93247507]
[1641012105248,0.23138877,3716.2,3716.1,4.93247507]
[1641012108204,0.23138877,3716.2,3716.1,4.29537507]
[1641012115688,0.18138877,3716.2,3716.1,4.29537507]
[1641012115892,0.18138877,3716.2,3716.1,5.26237507]
[1641012123899,0.18138877,3716.2,3716.1,6.26237507]
[1641012128850,0.18138877,3716.2,3716.1,8.47337409]
[1641012129649,0.18138877,3716.2,3716.1,6.26237507]
[1641012132098,0.18138877,3716.2,3716.1,6.86237507]
[1641012135247,0.18138877,3716.2,3716.1,9.07386931]
[1641012136450,0.18138877,3716.2,3716.1,6.86237507]
[1641012137892,0.18138877,3716.2,3716.1,6.26237507]
[1641012138095,0.18138877,3716.2,3716.1,5.26237507]
[1641012138300,0.18138877,3716.2,3716.1,4.29537507]
[1641012141502,0.18138877,3716.2,3716.1,5.09477507]
[1641012145595,1e-08,3716.5,3716.2,2.8]
[1641012145793,1e-08,3716.5,3716.3,7.7183]
[1641012145994,0.00170527,3716.4,3716.3,7.7183]
[1641012146897,0.10978227,3716.4,3716.3,7.7183]
[1641012147500,0.10978227,3716.4,3716.3,8.91818886]
[1641012148302,0.10978227,3716.4,3716.3,10.16818886]
[1641012148703,0.10978227,3716.4,3716.3,8.9683]
[1641012157142,0.00170527,3716.4,3716.3,8.9683]
[1641012158449,0.10978227,3716.4,3716.3,8.9683]
[1641012168206,0.05978227,3716.4,3716.3,8.9683]
[1641012185600,0.67277,3716.9,3716.3,8.9683]
[1641012185800,1.4075492,3717.1,3716.3,8.9683]
[1641012186001,0.00227369,3716.8,3716.3,8.9683]
[1641012186402,0.00170527,3716.7,3716.3,8.9683]
[1641012186853,2.06353392,3716.6,3716.3,8.9683]
[1641012187253,2.06239708,3716.6,3716.5,1.25]
[1641012187455,2.06239708,3716.6,3716.5,8.968]
[1641012187654,2.06353392,3716.6,3716.5,8.968]
[1641012188463,0.67396684,3716.6,3716.5,8.968]
[1641012200004,0.00113684,3716.6,3716.5,8.968]
[1641012206597,0.49338621,3716.6,3716.5,8.968]
[1641012212450,0.00113684,3716.6,3716.5,8.968]
[1641012212649,0.82936823,3716.6,3716.5,8.968]
[1641012216302,0.00113684,3716.6,3716.5,8.968]